Cogmind - Beta 15 @@@ ROGUE MODE // 2025.09.04 @ 21:45:43 Player: beans Result: Destroyed by S-27 Virus with Autogun Performance ------------- Evolutions (4) 2000 Regions Visited (9) 1800 Robots Destroyed (121) 605 Value Destroyed (4356) 4356 Prototype IDs (4) 80 Alien Tech Used (0) 0 Bonus (1145) 1145 TOTAL SCORE: 9986 Bonus ------- High Alert Combat Kills 467 Follower Combat Kills 57 Entered Garrisons 200 Used RIF Installer 500 Friendly Fire -79 Cogmind --------- Core Integrity 0/850 Matter 140/300 Energy 100/100 System Corruption 20% Temperature Cool (0) Movement Core (150) Ox2 Location -6/Factory Parts ------- > --- POWER (2) -------- (None) > --- PROPULSION (2) --- (None) > --- UTILITY (7) ------ Launcher Guidance Computer System Shield > --- WEAPON (4) ------- Heavy Rocket Launcher > --- INVENTORY (5) ---- Heavy Plasma Cannon Heavy Assault Cannon Heavy Flak Cannon Peak State ------------ > --- POWER ------------ Fission Core > --- PROPULSION ------- Flexi-carbon Leg Flexi-carbon Leg > --- UTILITY ---------- Improved Thermal Generator Launcher Guidance Computer Weapon Cycler Weapon Cycler Hacking Suite System Shield > --- WEAPON ----------- Cooled Pulse Rifle Cooled Pulse Rifle Gauss Rifle Gauss Rifle > --- INVENTORY -------- Heavy Assault Cannon Advanced Assault Cannon Improved Grenade Launcher Heavy Rocket Launcher [Rating: 57] Favorites ----------- Power Improved Ion Engine Engine Improved Ion Engine Power Core Fission Core Propulsion Carbon-fiber Leg Treads Light Treads Leg Carbon-fiber Leg Utility Weapon Cycler Device Weapon Cycler Storage Medium Matter Pod Processor Advanced Targeting Computer Hackware Hacking Suite Protection Experimental Weapon Shielding Weapon Gauss Rifle Energy Gun Cooled Pulse Rifle Energy Cannon Ion Cannon Ballistic Gun Gauss Rifle Ballistic Cannon Advanced Assault Cannon Launcher Rocket Launcher Build | -11 -10 -9 -9 -9 -8 -7 -6 -6 -6 ------- Run | Yrd Mat Mat Sto Gar Mat Fac Fac Was Fac Slots Evolved 8 | . . 2 . . 2 2 2 . . Power 1 | . . 1 . . . . . . . Propulsion . | . . . . . . . . . . Utility 5 | . . . . . 2 1 2 . . Weapon 2 | . . 1 . . . 1 . . . Parts Attached 67 | 5 . 7 . 11 23 3 18 . . Power 7 | 1 . 1 . 1 3 . 1 . . Engine 6 | 1 . 1 . 1 3 . . . . Core 1 | . . . . . . . 1 . . Reactor . | . . . . . . . . . . Propulsion 16 | 2 . . . 5 4 . 5 . . Treads 4 | 2 . . . . . . 2 . . Leg 12 | . . . . 5 4 . 3 . . Wheel . | . . . . . . . . . . Hover . | . . . . . . . . . . Flight . | . . . . . . . . . . Utility 19 | . . 2 . 1 8 1 7 . . Device 10 | . . 1 . . 7 . 2 . . Storage 1 | . . . . . . 1 . . . Processor 2 | . . . . . 1 . 1 . . Hackware 4 | . . . . 1 . . 3 . . Protection 2 | . . 1 . . . . 1 . . Artifact . | . . . . . . . . . . Weapon 25 | 2 . 4 . 4 8 2 5 . . Energy Gun 6 | . . 1 . . 3 . 2 . . Energy Cannon 1 | . . . . . 1 . . . . Ballistic Gun 9 | 2 . 3 . 2 . 2 . . . Ballistic Cannon 5 | . . . . . 4 . 1 . . Launcher 4 | . . . . 2 . . 2 . . Special Weapon . | . . . . . . . . . . Impact Weapon . | . . . . . . . . . . Slashing Weapon . | . . . . . . . . . . Piercing Weapon . | . . . . . . . . . . Special Melee Weapon . | . . . . . . . . . . Unidentified Prototypes 2 | . . . . . . . 2 . . Parts Lost 48 | . . 4 . 6 13 1 24 . . Power 6 | . . 2 . 1 . 1 2 . . Propulsion 10 | . . 1 . 1 2 . 6 . . Utility 14 | . . . . 2 2 . 10 . . Weapon 18 | . . 1 . 2 9 . 6 . . Highest Loss Streak 8 | . . 3 . 2 7 1 8 . . To Critical Strikes . | . . . . . . . . . . Average Backups 3 | 2 2 1 3 4 3 4 3 3 3 Power . | 1 1 . . . . . . . . Propulsion . | . . . . . . . . . . Utility . | . . . . . . . . . . Weapon 2 | . 1 . 2 2 2 3 3 3 3 Tool/Special . | . . . . . . . . . . Unused Backups 3 | . . . . . 1 . 1 . 1 Power . | . . . . . . . . . . Propulsion . | . . . . . . . . . . Utility . | . . . . . . . . . . Weapon 1 | . . . . . . . . . 1 Tool/Special 2 | . . . . . 1 . 1 . . Average Slot Usage (%) 69 | . 71 58 66 66 69 88 73 15 14 Engine 5 | . 14 11 . 2 7 12 1 . . Core 1 | . . . . . . . 4 . . Treads 3 | . 28 16 11 1 . . 3 . . Leg 10 | . . . . 18 11 15 3 . . Device 12 | . . 4 11 3 18 23 16 . . Processor 4 | . . . . . 7 7 5 6 6 Hackware 5 | . . . . 7 3 . 10 6 6 Protection 1 | . . 1 11 1 . . 2 . . Energy Gun 4 | . . 10 . . 7 . 8 . . Ballistic Gun 14 | . 28 15 33 29 1 14 10 . . Ballistic Cannon 3 | . . . . . 8 7 2 . . Peak Build Rating 57 | 5 5 11 11 18 39 44 57 12 12 Average Rating 26 | 1 5 7 11 15 24 42 44 9 9 On Entrance 14 | . 5 5 11 11 15 39 40 9 9 Naked Turns . | . . . . . . . . . . Heaviest Build 42 | 7 7 13 13 17 38 42 42 7 7 Greatest Support 40 | 40 40 40 20 30 40 40 40 3 3 Greatest Overweight (x) 12 | 1 . . . 5 8 1 12 2 2 Average Overweight (x) . | . . . . . . . . . . Largest Inventory Capacity 5 | 5 5 5 5 5 5 5 5 5 5 Average Capacity 5 | 5 5 5 5 5 5 5 5 5 5 Most Carried 5 | 5 3 2 5 5 5 5 5 5 5 Average Carried 4 | 2 2 1 3 4 3 4 4 4 4 Final Capacity 5 | 5 5 5 5 5 5 5 5 5 5 Final Carried 5 | 2 3 2 5 4 5 5 5 5 4 Class Distribution -------------------- 41% | Scavenger-Gunner 23% | Mutant 15% | Gunner 7% | Hacker-Gunner 4% | Hacker-Mutant 3% | Commander-Tank Dominant Class ---------------- Mutant | -10/Materials Mutant | -9/Materials Commander-Tank | -9/Storage Scavenger-Gunner | -9/Garrison Mutant | -8/Materials Scavenger-Gunner | -7/Factory Scavenger-Gunner | -6/Factory Mutant | -6/Waste Mutant | -6/Factory Resources | -11 -10 -9 -9 -9 -8 -7 -6 -6 -6 ----------- Run | Yrd Mat Mat Sto Gar Mat Fac Fac Was Fac Matter Collected 3155 | 226 120 194 16 745 708 354 642 . 150 Remotely . | . . . . . . . . . . Salvage Created 4318 | . 172 407 64 939 1367 326 1043 . . Parts 251 | . 11 27 5 55 91 15 47 . . Haulers Intercepted . | . . . . . . . . . . Recyclers Shooed 5 | . . 1 . . . 1 3 . . Parts Field Recycled . | . . . . . . . . . . Retrieved Matter . | . . . . . . . . . . Parts Self-Destructed . | . . . . . . . . . . Prevented . | . . . . . . . . . . Kills | -11 -10 -9 -9 -9 -8 -7 -6 -6 -6 ------- Run | Yrd Mat Mat Sto Gar Mat Fac Fac Was Fac Combat Hostiles Destroyed 93 | . 2 10 1 29 28 2 21 . . Guns 53 | . 2 10 1 18 8 . 14 . . Cannons 21 | . . . . . 16 2 3 . . AOE 19 | . . . . 11 4 . 4 . . Classes Destroyed 15 | . 3 4 1 1 4 . 2 . . Worker 8 | . . 1 . . 5 . 2 . . Builder 4 | . . . . . 4 . . . . Recycler 5 | . 1 . . . 1 2 1 . . Mechanic 2 | . 1 1 . . . . . . . Operator 3 | . . . 1 . . 1 1 . . Watcher 4 | . . 1 . . 2 1 . . . Swarmer 19 | . . 4 . 10 . . 5 . . Grunt 47 | . 2 4 . 16 18 . 7 . . Brawler 1 | . . . . . . . 1 . . Duelist 2 | . . . . . 1 . 1 . . Sentry 15 | . . 2 1 3 5 2 2 . . Specialist 2 | . . . . . 2 . . . . Hunter 6 | . . . . 2 1 . 3 . . Programmer 1 | . . . . . . . 1 . . Heavy 2 | . . . . . 1 . 1 . . Best Kill Streak 9 | . 4 4 1 8 9 2 5 . . Combat Bots Only 8 | . 1 4 1 8 4 1 5 . . Max Kills in Single Turn 3 | . 1 1 1 3 2 1 2 . . Gunslinging 1 | . . . . 1 . . 1 . . Exploded 3 | . . . . 3 2 . 1 . . Melee . | . . . . . . . . . . Uniques/NPCs Destroyed . | . . . . . . . . . . Combat | -11 -10 -9 -9 -9 -8 -7 -6 -6 -6 -------- Run | Yrd Mat Mat Sto Gar Mat Fac Fac Was Fac Hostile Shots Fired 527 | . 25 75 5 64 123 15 206 . 14 Missed 161 | . 6 23 2 20 31 7 66 . 6 Hits 366 | . 19 52 3 44 92 8 140 . 8 Melee 4 | . . . . . . . 4 . . Projectile 362 | . 19 52 3 44 92 8 136 . 8 AOE 2 | . . . . . . . 2 . . Critical Strikes 16 | . . 1 1 . 6 . 8 . . Damage Taken 6215 | . 208 569 45 682 1608 213 2701 60 129 Core 1691 | . 33 154 . 212 424 6 733 . 129 Absorbed by Shields . | . . . . . . . . . . Redirected to Shielding 153 | . . . . . . . 153 . . Core Remaining (%) 63 | 100 86 . . 8 22 99 . . . Volleys Fired 322 | . 16 41 4 64 99 15 82 . 1 Largest 4 | . 2 3 3 3 3 3 4 . 1 Hottest 176 | . 40 96 69 89 143 106 176 . 39 Shots Fired 709 | . 32 86 12 147 189 42 200 1 . Gun 552 | . 32 86 12 134 97 30 161 . . Cannon 130 | . . . . . 88 12 30 . . Launcher 27 | . . . . 13 4 . 9 1 . Special . | . . . . . . . . . . Kinetic 492 | . 32 46 12 134 100 42 126 . . Thermal 189 | . . 40 . . 84 . 65 . . Explosive 27 | . . . . 13 4 . 9 1 . Electromagnetic 1 | . . . . . 1 . . . . Robot Hit Streak 18 | . 4 14 3 11 18 4 11 1 . Robot Miss Streak 7 | . 2 3 5 3 5 4 7 . . Penetration Max 1 | . . . . . 1 . 1 . . Secondary Targets 13 | . 1 3 . 3 2 . 4 . . Max Gunslinging Chain 1 | . 1 1 . 1 1 . 1 . . Shots Hit Robots 397 | . 17 59 3 55 120 18 124 1 . Core Hits 213 | . 7 20 2 43 67 8 65 1 . Critical Kills 3 | . . . 1 1 . . 1 . . Critical Parts Destroyed . | . . . . . . . . . . Critical Strikes 18 | . . 6 1 2 5 1 3 . . Burn 10 | . . 6 . . 2 . 2 . . Destroy 4 | . . . 1 2 . . 1 . . Blast 4 | . . . . . 3 1 . . . Melee Attacks . | . . . . . . . . . . Impact . | . . . . . . . . . . Slashing . | . . . . . . . . . . Piercing . | . . . . . . . . . . Sneak Attacks . | . . . . . . . . . . Combat Hostiles . | . . . . . . . . . . Follow-up Attacks . | . . . . . . . . . . Damage Inflicted 10809 | . 234 838 66 2079 3626 516 3394 56 . Guns 5425 | . 234 838 66 926 1062 217 2082 . . Cannons 2710 | . . . . . 1814 299 597 . . Explosions 2669 | . . . . 1153 750 . 710 56 . Melee . | . . . . . . . . . . Ramming 5 | . . . . . . . 5 . . Kinetic 5847 | . 234 450 66 926 1808 516 1847 . . Thermal 2275 | . . 388 . . 1055 . 832 . . Explosive 2669 | . . . . 1153 750 . 710 56 . Electromagnetic 13 | . . . . . 13 . . . . Impact . | . . . . . . . . . . Slashing . | . . . . . . . . . . Piercing . | . . . . . . . . . . Highest Corruption 20 | . . . . . . . 7 17 20 Average Corruption 5 | . . . . . . . 3 15 17 Corruption Purged . | . . . . . . . . . . Corruption Blocked . | . . . . . . . . . . Effects 45 | . . . . . . . 36 3 6 Message Errors 7 | . . . . . . . 6 . 1 Matter Fused 16 | . . . . . . . 15 1 . Heat Flow Errors 8 | . . . . . . . 6 . 2 Energy Discharges 1 | . . . . . . . 1 . . Data Loss (minor) 6 | . . . . . . . 4 . 2 Data Loss (major) 1 | . . . . . . . 1 . . Misfires 3 | . . . . . . . 2 1 . Misdirections 1 | . . . . . . . . 1 . Weapon Failures 2 | . . . . . . . 1 . 1 Overload Shots 10 | . . . . . . . 10 . . Overflow Damage 244 | . . . . 48 134 33 29 . . Projectiles 128 | . . . . . 66 33 29 . . Explosions 116 | . . . . 48 68 . . . . Melee . | . . . . . . . . . . Knockbacks 13 | . . . . . 10 2 1 . . Impact . | . . . . . . . . . . Kinetic 13 | . . . . . 10 2 1 . . Secondary . | . . . . . . . . . . Self-Inflicted Damage 264 | . . . . 157 46 . 1 60 . Shots 6 | . . . . 4 1 . . 1 . Rammed 6 | . . . . . . . 6 . . Targets Rammed 6 | . . . . . . . 6 . . Kicked . | . . . . . . . . . . Crushed . | . . . . . . . . . . Highest Temperature 463 | . . 240 . 2 262 65 463 . 260 Average Temperature 94 | . . 98 . 2 49 21 147 . 120 Received Heat Transfer 1707 | . 114 207 27 192 774 12 381 . . Effects 6 | . . 1 . . . . 5 . . Shutdowns 3 | . . . . . . . 3 . . Energy Bleed 1 | . . . . . . . 1 . . Interference 2 | . . 1 . . . . 1 . . Siege Activations . | . . . . . . . . . . Martial Activations . | . . . . . . . . . . Shielding Activations . | . . . . . . . . . . Robots Disrupted . | . . . . . . . . . . Combat Hostiles . | . . . . . . . . . . Robots Corrupted . | . . . . . . . . . . Combat Hostiles . | . . . . . . . . . . Parts Fried . | . . . . . . . . . . Impact Corruptions . | . . . . . . . . . . Robots Melted . | . . . . . . . . . . Combat Hostiles . | . . . . . . . . . . Parts Melted 16 | . . 5 . . 5 . 6 . . Heat Transferred 5528 | . . 1591 . . 2294 . 1643 . . Parts Sabotaged . | . . . . . . . . . . Parts Stolen . | . . . . . . . . . . Parts Stripped . | . . . . . . . . . . Power Chain Reactions . | . . . . . . . . . . Alert | -11 -10 -9 -9 -9 -8 -7 -6 -6 -6 ------- Run | Yrd Mat Mat Sto Gar Mat Fac Fac Was Fac Maximum Alert Level 3 | . . . . 3 3 1 . . . Low Security (%) 42 | 100 100 100 100 9 . 3 100 100 100 Level 1 13 | . . . . 14 . 96 . . . Level 2 32 | . . . . 36 91 . . . . Level 3 12 | . . . . 38 8 . . . . Level 4 . | . . . . . . . . . . Level 5 . | . . . . . . . . . . High Security . | . . . . . . . . . . Max Security . | . . . . . . . . . . Peak Influence 1037 | . 45 106 55 1037 856 393 196 60 . Initial 505 | . . 3 37 29 505 383 93 52 . Average 353 | . 12 60 36 597 600 278 71 33 . Influence Increases 3448 | . 60 273 68 1208 1011 103 717 8 . Destroy 0b10 Robot/C 1920 | . 40 200 20 640 560 40 420 . . Destroy 0b10 Robot/NC 135 | . 10 15 10 . 60 20 20 . . Destroy Leader 360 | . 10 42 12 40 144 22 90 . . Allied During Kill 101 | . . . 20 81 . . . . . Successful Hack 28 | . . . 4 24 . . . . . Disable Machine 300 | . . . . 90 105 15 90 . . Anti-Garrison Action 200 | . . . . 200 . . . . . Destroy Structure 269 | . . 1 2 118 67 6 67 8 . Partial Spotted 30 | . . . . 15 15 . . . . Lose Combat Pursuer 105 | . . 15 . . 60 . 30 . . Influence Decreases 3448 | . 50 195 111 216 1204 757 758 157 . Entered New Map 1261 | . . 7 51 16 532 461 97 97 . Time Decay 1579 | . 50 148 60 . 542 286 453 40 . Lost Part 448 | . . 40 . 60 130 10 208 . . Lost Ally 160 | . . . . 140 . . . 20 . Squads Dispatched 14 | . 1 . 1 . 5 1 6 . . Investigation 2 | . 1 . 1 . . . . . . Extermination 3 | . . . . . . 1 2 . . Reinforcement 8 | . . . . . 5 . 3 . . Assault . | . . . . . . . . . . Garrison 1 | . . . . . . . 1 . . Intercept . | . . . . . . . . . . Searches Triggered . | . . . . . . . . . . Construction Impeded 2 | . . . . . 1 . 1 . . Haulers Reinforced . | . . . . . . . . . . Active Scanning Responses . | . . . . . . . . . . Cargo Convoy Interrupts . | . . . . . . . . . . Stealth | -11 -10 -9 -9 -9 -8 -7 -6 -6 -6 --------- Run | Yrd Mat Mat Sto Gar Mat Fac Fac Was Fac Distress Signals 6 | . . . 1 . 3 . . . 2 Communications Jammed . | . . . . . . . . . . Distress Signals . | . . . . . . . . . . Times Spotted 155 | . 3 15 3 32 49 9 35 6 3 Peak Tracking Total 6 | . 3 5 2 4 6 3 5 6 2 Tactical Retreats 5 | . . 1 . . 3 . 1 . . Traps | -11 -10 -9 -9 -9 -8 -7 -6 -6 -6 ------- Run | Yrd Mat Mat Sto Gar Mat Fac Fac Was Fac Traps Triggered 8 | . 1 . . 2 . . 3 . 2 Indirectly . | . . . . . . . . . . Trap Hack Attempts . | . . . . . . . . . . Triggered . | . . . . . . . . . . Disarmed . | . . . . . . . . . . Reprogrammed . | . . . . . . . . . . Reused . | . . . . . . . . . . Traps Extracted . | . . . . . . . . . . Installed . | . . . . . . . . . . Triggered . | . . . . . . . . . . Machines | -11 -10 -9 -9 -9 -8 -7 -6 -6 -6 ---------- Run | Yrd Mat Mat Sto Gar Mat Fac Fac Was Fac Machines Disabled 22 | . . . . 8 7 1 6 . . Max in Single Turn 5 | . . . . 2 3 1 5 . . Garrison Access 2 | . . . . . . 1 1 . . Phase Generator 1 | . . . . 1 . . . . . Machines Repaired . | . . . . . . . . . . Machines Dismantled . | . . . . . . . . . . Machines Sabotaged . | . . . . . . . . . . Overloaded Fab Kills . | . . . . . . . . . . Hacking | -11 -10 -9 -9 -9 -8 -7 -6 -6 -6 --------- Run | Yrd Mat Mat Sto Gar Mat Fac Fac Was Fac Machines Accessed 11 | . . . 1 4 . 3 2 . 1 Terminals 6 | . . . . 4 . 1 1 . . Fabricators 2 | . . . . . . 1 . . 1 Repair Stations . | . . . . . . . . . . Recycling Units . | . . . . . . . . . . Scanalyzers . | . . . . . . . . . . Garrison Access 3 | . . . 1 . . 1 1 . . Total Hacks 20 | . . . 4 7 . 4 4 . 1 Successful 9 | . . . 1 2 . 2 3 . 1 Failed 11 | . . . 3 5 . 2 1 . . Catastrophic 2 | . . . 1 . . 1 . . . Database Lockouts . | . . . . . . . . . . Manual 1 | . . . . . . 1 . . . Terminals 10 | . . . . 7 . 2 1 . . Fabricators 2 | . . . . . . 1 . . 1 Repair Stations . | . . . . . . . . . . Recycling Units . | . . . . . . . . . . Scanalyzers . | . . . . . . . . . . Garrison Access 8 | . . . 4 . . 1 3 . . Terminal Hacks 3 | . . . . 2 . 1 . . . Prototype ID Bank 1 | . . . . . . 1 . . . Garrison Registry 1 | . . . . 1 . . . . . Patrol Navigation 1 | . . . . 1 . . . . . Fabricator Hacks 1 | . . . . . . . . . 1 Build 1 | . . . . . . . . . 1 Repair Station Hacks . | . . . . . . . . . . Recycling Unit Hacks . | . . . . . . . . . . Scanalyzer . | . . . . . . . . . . Garrison Access Hacks 5 | . . . 1 . . 1 3 . . Unlock Access 2 | . . . 1 . . . 1 . . Seal Access 2 | . . . . . . 1 1 . . Coupler Status 1 | . . . . . . . 1 . . Unauthorized Hacks . | . . . . . . . . . . Terminals . | . . . . . . . . . . Fabricators . | . . . . . . . . . . Repair Stations . | . . . . . . . . . . Recycling Units . | . . . . . . . . . . Scanalyzers . | . . . . . . . . . . Garrison Access . | . . . . . . . . . . Data Cores Recovered 2 | . . . . . . 1 1 . . Used . | . . . . . . . . . . Hacking Detections 8 | . . . 1 4 . 1 2 . . Full Trace Events 2 | . . . 1 1 . . . . . Feedback Events . | . . . . . . . . . . Feedback Blocked . | . . . . . . . . . . Robot Schematics Acquired . | . . . . . . . . . . Robots Built . | . . . . . . . . . . Authchips . | . . . . . . . . . . Time . | . . . . . . . . . . Total Robot Build Rating . | . . . . . . . . . . Part Schematics Acquired . | . . . . . . . . . . Parts Built . | . . . . . . . . . . Authchips . | . . . . . . . . . . Time 117 | . . . . . . . . . 117 Total Part Build Rating . | . . . . . . . . . . Parts Repaired . | . . . . . . . . . . Time . | . . . . . . . . . . Parts Recycled . | . . . . . . . . . . Recycled Matter . | . . . . . . . . . . Retrieved Matter . | . . . . . . . . . . Retrieved Components . | . . . . . . . . . . Parts Scanalyzed . | . . . . . . . . . . Part Schematics Acquired . | . . . . . . . . . . Parts Damaged . | . . . . . . . . . . Bothacking | -11 -10 -9 -9 -9 -8 -7 -6 -6 -6 ------------ Run | Yrd Mat Mat Sto Gar Mat Fac Fac Was Fac Used RIF Installer 1 | . . . . 1 . . . . . Robots Hacked . | . . . . . . . . . . Non-combat . | . . . . . . . . . . Combat . | . . . . . . . . . . Robot Hacks Applied . | . . . . . . . . . . Relay Couplers Released . | . . . . . . . . . . Fabnet Peak Effective % . | . . . . . . . . . . Robots Rewired . | . . . . . . . . . . Allies Hacked . | . . . . . . . . . . Hacks Repelled . | . . . . . . . . . . Allies | -11 -10 -9 -9 -9 -8 -7 -6 -6 -6 -------- Run | Yrd Mat Mat Sto Gar Mat Fac Fac Was Fac Total Allies 11 | . . . 10 . . . . 1 . Largest Group 10 | . . . 10 10 . . . 1 . Highest-Rated Group 88 | . . . 88 88 . . . 31 . Highest-Rated Ally 31 | . . . 16 16 . . . 31 . Total Orders . | . . . . . . . . . . Ally Attacks 70 | . . . 27 41 . . . 2 . Total Damage 629 | . . . 229 358 . . . 42 . Kills 5 | . . . 1 4 . . . . . Allies Corrupted . | . . . . . . . . . . Allies Melted . | . . . . . . . . . . Intel | -11 -10 -9 -9 -9 -8 -7 -6 -6 -6 ------- Run | Yrd Mat Mat Sto Gar Mat Fac Fac Was Fac Active Infowar (turns) . | . . . . . . . . . . Robot Analysis Total . | . . . . . . . . . . Derelict Logs Recovered . | . . . . . . . . . . Drone Launches . | . . . . . . . . . . Drone Recoveries . | . . . . . . . . . . Exploration | -11 -10 -9 -9 -9 -8 -7 -6 -6 -6 ------------- Run | Yrd Mat Mat Sto Gar Mat Fac Fac Was Fac Turns Passed 6217 | 46 216 325 124 1604 1545 624 1534 80 119 Spaces Moved 3346 | 47 105 117 62 1099 595 357 658 125 181 Core 627 | 39 . . . 1 197 . 84 125 181 Treads 735 | 8 105 117 62 120 . . 323 . . Legs 1984 | . . . . 978 398 357 251 . . Wheels . | . . . . . . . . . . Hover . | . . . . . . . . . . Flight . | . . . . . . . . . . Fastest Speed 50 | 50 160 160 160 120 50 130 50 50 50 Average Speed 141 | 77 160 160 160 124 144 162 191 58 62 Slowest Speed 650 | 160 160 160 160 300 450 200 650 150 150 Overloaded Moves . | . . . . . . . . . . Propulsion Burnouts . | . . . . . . . . . . Robots Hopped . | . . . . . . . . . . Potential Cave-ins . | . . . . . . . . . . Cave-ins Triggered . | . . . . . . . . . . Exploration Rate (%) 32 | 3 30 15 10 80 52 11 22 89 9 Regions Visited 9 Branch Regions 1 Pre-discovered Areas . | . . . . . . . . . . Known Exits Taken 1 | . . . 1 . . . . . . Unknown Exits Taken 5 | 1 1 1 . . 1 1 . . . Scrap Searched . | . . . . . . . . . . Spaces Dug 5 | . . . . . 5 . . . . Terrain Destroyed 306 | . . . . 113 69 7 108 9 . Melee . | . . . . . . . . . . Projectile 41 | . . . . 1 23 7 10 . . AOE 265 | . . . . 112 46 . 98 9 . Terrain Rammed . | . . . . . . . . . . Walls Destroyed . | . . . . . . . . . . Machines Disabled . | . . . . . . . . . . Actions | -11 -10 -9 -9 -9 -8 -7 -6 -6 -6 --------- Run | Yrd Mat Mat Sto Gar Mat Fac Fac Was Fac Total 4291 | 56 121 175 78 1209 1137 378 819 131 187 Wait 459 | . . 4 10 20 378 . 38 5 4 Move 3337 | 46 104 116 61 1097 594 356 658 124 181 Hop . | . . . . . . . . . . Pick Up 50 | 5 1 5 3 4 25 2 5 . . Fast Attach 23 | 2 . . . 4 3 . 14 . . Attach 49 | 3 . 6 . 5 23 3 7 1 1 Detach 8 | . . . . . 3 1 3 1 . Swap 15 | . . 2 . 8 2 1 2 . . Drop 19 | . . 1 . 4 10 . 4 . . Fire 322 | . 16 41 4 64 99 15 82 . 1 Melee . | . . . . . . . . . . Ram 1 | . . . . . . . 1 . . Kick . | . . . . . . . . . . Crush 5 | . . . . . . . 5 . . Escape Stasis 3 | . . . . 3 . . . . . Rewire . | . . . . . . . . . . Trap . | . . . . . . . . . . Miscellaneous . | . . . . . . . . . . Route ------- -11/Scrapyard -10/Materials -9/Materials -9/Storage -9/Garrison (discovered 3 exits: [*Mat x3]) -8/Materials -7/Factory -6/Factory (discovered 2 exits: [*Fac] / [*Low]) -6/Waste -6/Factory History --------- Turn | Location | Event 4 | -11/Scrapyard | Discovered new exit (range 15) 47 | -11/Scrapyard | Entered Materials 242 | -10/Materials | Discovered new exit (range 5) 263 | -10/Materials | Entered another Materials area 263 | -9/Materials | Evolved 2 slots: Power x1, Weapon x1 461 | -9/Materials | Lost 3 parts (2p1n) 535 | -9/Materials | Discovered new exit (range 10) 588 | -9/Materials | Entered Storage 634 | -9/Storage | Assisted by bots powering up and referring to "LRC-V3" 684 | -9/Storage | Identified exit to Garrison 712 | -9/Storage | Entered Garrison 712 | -9/Garrison | Accompanied by 10 allies 740 | -9/Garrison | Triggered checkpoint 776 | -9/Garrison | Lost 3 allies 850 | -9/Garrison | Triggered checkpoint 868 | -9/Garrison | Triggered checkpoint 887 | -9/Garrison | Triggered checkpoint 901 | -9/Garrison | Triggered checkpoint 930 | -9/Garrison | Destroyed 8 combat bots 938 | -9/Garrison | Lost 3 allies 1019 | -9/Garrison | Core integrity fell below 50% 1152 | -9/Garrison | Triggered checkpoint 1343 | -9/Garrison | Discovered new exit (range 13) 1440 | -9/Garrison | Triggered checkpoint 1469 | -9/Garrison | Installed Relay Interface Framework 1534 | -9/Garrison | Discovered new exit (range 10) 1568 | -9/Garrison | Build established: Scavenger-Gunner 1690 | -9/Garrison | Triggered checkpoint 1710 | -9/Garrison | Discovered new exit (range 78) 1710 | -9/Garrison | Discovered new exit (range 60) 1710 | -9/Garrison | Discovered new exit (range 19) 1857 | -9/Garrison | Core integrity fell below 20% 2098 | -9/Garrison | Phase Generator disabled 2316 | -9/Garrison | Entered Materials 2316 | -8/Materials | Evolved 2 slots: Utility x2 2459 | -8/Materials | Lost 7 parts (2n5w) 2562 | -8/Materials | Lost 3 parts (1u2w) 2708 | -8/Materials | Build established: Mutant 3033 | -8/Materials | Core integrity fell below 50% 3451 | -8/Materials | Build established: Gunner 3855 | -8/Materials | Discovered new exit (range 5) 3861 | -8/Materials | Entered Factory 3861 | -7/Factory | Evolved 2 slots: Utility x1, Weapon x1 4168 | -7/Factory | Build established: Scavenger-Gunner 4478 | -7/Factory | Discovered new exit (range 6) 4485 | -7/Factory | Entered another Factory area 4485 | -6/Factory | Evolved 2 slots: Utility x2 4965 | -6/Factory | Garrison activated, responded to threat 5063 | -6/Factory | Identified exit to Garrison 5137 | -6/Factory | Build established: Hacker-Gunner 5349 | -6/Factory | Lost 3 parts (1n2u) 5757 | -6/Factory | Lost 8 parts (1p2n1u4w) 5825 | -6/Factory | Core integrity fell below 50% 5899 | -6/Factory | Lost 3 parts (2u1w) 5994 | -6/Factory | Core integrity fell below 20% 5997 | -6/Factory | Discovered new exit (range 15) 6008 | -6/Factory | Discovered new exit (range 15) 6019 | -6/Factory | Sucked down chute 6019 | -6/Factory | Entered Waste 6020 | -6/Waste | Met a frightened Derelict 6022 | -6/Waste | Lost 3 parts (1n1u1w) 6034 | -6/Waste | EMP discharged 6034 | -6/Waste | System corruption reached 10% 6051 | -6/Waste | Spotted C-40 Crusher 6071 | -6/Waste | Spotted C-40 Crusher 6074 | -6/Waste | Spotted C-40 Crusher 6080 | -6/Waste | Spotted C-40 Crusher 6085 | -6/Waste | Spotted C-40 Crusher 6088 | -6/Waste | Spotted C-40 Crusher 6091 | -6/Waste | Discovered new exit (range 14) 6099 | -6/Waste | Entered Factory 6218 | -6/Factory | Destroyed by S-27 Virus with Autogun Last Messages --------------- Acquired 5 matter. U-05 Engineer lays Concrete. K-01 Serf collects debris. U-05 Engineer lays Concrete. R-10 Processor collects VTOL Module. Acquired 3 matter. U-05 Engineer lays Concrete. K-01 Serf collects debris. U-05 Engineer lays Concrete. K-01 Serf collects debris. U-05 Engineer lays Concrete. K-01 Serf collects debris. U-05 Engineer lays Concrete. K-01 Serf collects debris. U-05 Engineer lays Concrete. System corrupted: Hvy. Rocket Launcher failed to launch. U-05 Engineer lays Concrete. K-01 Serf collects debris. U-05 Engineer lays Concrete. Map ----- +----------------------------------------------------+ | ???????????????????????????????????????????????# | | ???????????????????????????????????????????????# | | ?????????????????????????????????????? ??????# | | ??????????????????? ?????????????? ??????+ | | ??????????????????? #????????????# ??????# | | ????????????????? #????????????# #?????### | | ????????????????? #????????????# #???????? | | ????????????????? #????????"???# #???????? | | ????????????????? #??????? ???# #???????? | | ??????##????????? #???????#+#??# #???????? | | ???????/ ???????? #???????# #??# ######### | | ???????# "??????? ####????# #??# # " | | ???????# ??????? # ###### #??# # [ " | | ??? ????? ?????? ; ## #??# # | | ??? #####+######+#;;;;; ## #### # | | ?? # | | ?? R # | | ? < R + | | ? R u # """""" | | ? u # """""" | | ?????### # """""" | | ???????# < uu ! # """""" | | ???????# # | | ???????# k ######### | | ???????# #???????? | | ???????# """% @ * #???????? | | ???????# """ s #???????? | | ???????# """ ######### ^ #???????? | | ???????# #???????# #??????## | | ??????? """ #???????# ? | | ?????? """ #???????+ | | ??????? """ #???????# ] | | ????????? ? #???????# """" "" | | ???????????? ? #???????# *! """"??" | | ????????????? #???????# ! ""????? | | ?????????????? #???????? ????? | | ?????????????? k ???????? """" ""????? | | ???????????????? ???????? """" "?????? | | ?????????????????? ???????? ???????????? | | ?????????????????????" F" ???????? ???????????? | | ????????????????????????? ?????????????????????? | | ?????????????????????????????????????????????????? | | ?????????????????????????????????????????????????? | | ?????????????????????????????????????????????????? | | ?????????????????????????????????????????????????? | | ?????????????????????????????????????????????????? | | ?????????????????????????????????????????????????? | | ?????????????????????????????????????????????????? | | ?????????????????????????????????????????????????? | | ?????????????????????????????????????????????????? | +----------------------------------------------------+ Best States ------------- Heat Dissipation 59 Energy Generation 25 Energy Capacity 475 Matter Stores 314 Matter Capacity 400 Sight Range 16 Terrain Scan Density 10 Armor Coverage 150 Weapon Shielding 90 Weapon Cycling 30 Evasion (%) 55 Targeting Accuracy 8 Launcher Accuracy 20 Recoil Reduction 2 Offensive Hacking 12 Defensive Hacking 10 Item Schematics ----------------- None Robot Schematics ------------------ None Fabricated ------------ Nothing Repaired ---------- Nothing Alien Tech Used ----------------- None Achievements -------------- None Challenges ------------ None Game ------ Seed PersonalHellfireMount Manual? 0 Play Time 00:39:47 Cumulative 125.6 hours Start 2025.09.04 @ 21:03:01 End 2025.09.04 @ 21:45:43 Sessions 1 Manual Loads 0 Difficulty Rogue Special Mode None Game No. 443 Rogue 443 Adventurer 0 Explorer 0 Win Type - Total 0 Types 0/0/0/0/0/0/0/0/0/0 Lore% 48 Gallery% 47 Achievement% 34 Wizard Run 0 Options --------- Layout 2 ASCII 0 Keyboard 0 Movement Mouse Keybinds 0 Fullscreen 2 Font 24/Smallcaps Map View 50x44 Zoom Use 0% Tactical HUD 0 Map Filters NONE Filters NONE Steam 1 RUN: 7fdfff6e-417d-4de1-87e0-05125689e1f9